{"text_format":"1","workbook":"xlsx","n_sheets":2,"sheets":["КП","прайс"],"not_rendered":{"charts":0,"images":0,"macros":1,"external_links":1,"defined_names":23,"comments":1,"pivot_tables":0},"unopened":[],"bounds":{"document_bytes":16777216,"sheet_cells":100000,"rows_first":2000,"rows_last":500,"rows_between":2000,"halvings":0,"cell_chars":16384,"cell_head_chars":4096},"cells_cut":0,"cells_raw":0,"read":"whole","date_system":"1900"}

{"sheet":"КП","index":0,"n_rows":112,"n_cols":17,"rows_kept":112,"cut":false,"hidden":false,"merged":[[63,1,63,15],[43,1,43,15],[36,1,36,15],[34,1,34,15],[11,0,11,14],[7,0,7,14],[8,0,8,14],[91,1,91,7],[99,1,99,15],[19,1,19,15],[22,1,22,15],[25,1,25,15],[28,1,28,15],[57,1,57,6],[57,7,57,8],[57,10,57,15],[58,1,58,15],[45,1,45,15],[46,1,46,15],[48,1,48,15],[49,1,49,15],[68,1,68,15],[64,1,64,15],[107,6,107,9],[97,1,97,15],[98,1,98,15],[93,1,93,15],[94,1,94,15],[95,1,95,15],[96,1,96,15],[106,1,106,3],[107,1,107,5],[107,10,107,13],[101,0,101,15],[102,0,102,15],[100,0,100,15],[2,4,2,7],[4,8,4,15],[2,8,2,15],[61,0,61,15],[62,0,62,15],[6,0,6,14],[5,0,5,14],[3,0,3,15],[4,4,4,7],[9,0,9,14],[29,1,29,15],[32,1,32,15],[31,1,31,15],[39,1,39,15],[51,1,51,15],[52,1,52,15],[23,1,23,15],[26,1,26,15],[13,8,13,15],[13,0,13,7],[12,0,12,15],[16,1,16,15],[72,1,72,6],[84,1,84,6],[85,1,85,6],[90,1,90,7],[82,1,82,13],[80,1,80,7],[86,1,86,6],[87,1,87,6],[88,1,88,6],[89,1,89,6],[83,1,83,6],[79,1,79,7],[73,1,73,6],[74,1,74,6],[75,1,75,6],[76,1,76,6],[77,1,77,6],[78,1,78,6],[0,10,0,12],[0,13,0,15],[65,1,65,15],[66,1,66,15],[71,1,71,13],[70,1,70,15],[1,0,1,6],[1,7,1,15],[17,1,17,15],[67,1,67,15],[40,1,40,15],[42,1,42,15],[37,1,37,15],[59,1,59,15],[55,1,55,15],[20,1,20,15]]}
[null,null,null,null,null,null,null,null,null,null,"Оренбург",null,null,{"$f":"TODAY()","v":"2015-03-26"}]
[]
[]
[]
[]
[]
[]
[]
[]
[]
[]
[]
[]
[]
[]
[]
[]
[]
[]
[]
[]
[]
[]
[]
[]
[]
[]
[]
[]
[]
[]
[]
[]
[]
[]
[]
[]
[]
[]
[]
[]
[]
[]
[]
[]
[]
[]
[]
[]
[]
[]
[]
[]
[]
[]
[]
[]
[]
[]
[]
[]
[]
[]
[]
[]
[]
[]
[]
[]
[]
[]
[]
[null,null,null,null,null,null,null,null,null,null,null,null,null,null,null,null,0]
[null,null,null,null,null,null,null,null,null,null,null,null,null,null,null,null,2.5000000000000001E-2]
[null,null,null,null,null,null,null,null,null,null,null,null,null,null,null,null,0.05]
[null,null,null,null,null,null,null,null,null,null,null,null,null,null,null,null,7.4999999999999997E-2]
[null,null,null,null,null,null,null,null,null,null,null,null,null,null,null,null,0.1]
[null,null,null,null,null,null,null,null,null,null,null,null,null,null,null,null,0.125]
[null,null,null,null,null,null,null,null,null,null,null,null,null,null,null,null,0.15]
[]
[]
[]
[]
[]
[]
[]
[]
[]
[]
[]
[]
[]
[]
[]
[]
[]
[]
[]
[]
[]
[]
[]
[]
[]
[]
[]
[]
[null,null,null,null,null,null,null,null,null,null,null,null,null,null,null,null,{"$f":"#REF!","v":{"$error":"#REF!"}}]
[null,null,null,null,null,null,null,null,null,null,null,null,null,null,null,null,{"$f":"#REF!","v":{"$error":"#REF!"}}]
[null,null,null,null,null,null,null,null,null,null,null,null,null,null,null,null,{"$f":"#REF!","v":{"$error":"#REF!"}}]
[null,null,null,null,null,null,null,null,null,null,null,null,null,null,null,null,{"$f":"#REF!","v":{"$error":"#REF!"}}]
[null,null,null,null,null,null,null,null,null,null,null,null,null,null,null,null,{"$f":"#REF!","v":{"$error":"#REF!"}}]

{"sheet":"прайс","index":1,"n_rows":141,"n_cols":9,"rows_kept":141,"cut":false,"hidden":false,"merged":[[126,0,126,3],[127,0,127,3],[123,4,123,8],[124,4,124,8],[125,4,125,8],[126,4,126,8],[127,4,127,8],[137,0,137,1],[138,0,138,1],[128,0,128,3],[129,0,129,3],[131,0,131,3],[132,0,132,3],[128,4,128,8],[129,4,129,8],[130,0,130,3],[130,4,130,8],[131,4,131,8],[132,4,132,8],[133,0,133,8],[118,0,118,3],[120,0,120,3],[121,0,121,3],[122,0,122,3],[121,4,121,8],[122,4,122,8],[123,0,123,3],[124,0,124,3],[125,0,125,3],[75,0,75,3],[78,0,78,3],[81,0,81,3],[75,4,75,8],[99,0,99,3],[100,0,100,3],[102,0,102,3],[103,0,103,3],[105,0,105,3],[8,4,8,8],[10,0,10,3],[72,0,72,3],[13,0,13,3],[14,0,14,3],[16,0,16,3],[11,0,11,3],[12,0,12,3],[20,0,20,3],[21,0,21,3],[22,0,22,3],[0,0,0,8],[1,4,1,8],[2,0,2,8],[3,0,3,8],[5,4,5,8],[6,4,7,4],[6,5,7,5],[6,6,7,6],[6,7,7,7],[6,8,7,8],[23,0,23,3],[17,0,17,3],[18,0,18,3],[19,0,19,3],[27,0,27,3],[6,0,6,3],[7,0,7,3],[9,0,9,3],[4,0,4,3],[5,0,5,3],[28,0,28,3],[29,0,29,3],[24,0,24,3],[25,0,25,3],[26,0,26,3],[25,4,25,8],[26,4,26,8],[27,4,27,8],[28,4,28,8],[29,4,29,8],[33,0,33,3],[34,0,34,3],[35,0,35,3],[30,0,30,3],[31,0,31,3],[32,0,32,3],[30,4,30,8],[31,4,31,8],[32,4,32,8],[33,4,33,8],[34,4,34,8],[35,4,35,8],[39,0,39,3],[40,0,40,3],[41,0,41,3],[36,0,36,3],[37,0,37,3],[38,0,38,3],[36,4,36,8],[37,4,37,8],[38,4,38,8],[39,4,39,8],[40,4,40,8],[41,4,41,8],[45,0,45,3],[46,0,46,3],[47,0,47,3],[42,0,42,3],[43,0,43,3],[44,0,44,3],[42,4,42,8],[43,4,43,8],[44,4,44,8],[45,4,45,8],[46,4,46,8],[47,4,47,8],[51,0,51,3],[52,0,52,3],[53,0,53,3],[48,0,48,3],[49,0,49,3],[50,0,50,3],[48,4,48,8],[49,4,49,8],[50,4,50,8],[51,4,51,8],[52,4,52,8],[53,4,53,8],[57,0,57,3],[58,0,58,3],[59,0,59,3],[54,0,54,3],[55,0,55,3],[56,0,56,3],[54,4,54,8],[55,4,55,8],[56,4,56,8],[57,4,57,8],[58,4,58,8],[59,4,59,8],[63,0,63,3],[64,0,64,3],[65,0,65,3],[60,0,60,3],[61,0,61,3],[62,0,62,3],[60,4,60,8],[61,4,61,8],[62,4,62,8],[63,4,63,8],[64,4,64,8],[65,4,65,8],[73,0,73,3],[74,0,74,3],[69,0,69,3],[70,0,70,3],[71,0,71,3],[66,0,66,3],[67,0,67,3],[68,0,68,3],[66,4,66,8],[67,4,67,8],[68,4,68,8],[69,4,69,8],[70,4,70,8],[71,4,71,8],[72,4,72,8],[73,4,73,8],[74,4,74,8],[82,0,82,3],[83,0,83,3],[79,0,79,3],[80,0,80,3],[76,0,76,3],[77,0,77,3],[87,0,87,3],[76,4,76,8],[77,4,77,8],[78,4,78,8],[79,4,79,8],[80,4,80,8],[81,4,81,8],[82,4,82,8],[83,4,83,8],[88,0,88,3],[89,0,89,3],[84,0,84,3],[85,0,85,3],[86,0,86,3],[84,4,84,8],[85,4,85,8],[86,4,86,8],[87,4,87,8],[88,4,88,8],[89,4,89,8],[90,0,90,3],[91,0,91,3],[92,0,92,3],[93,0,93,3],[94,0,94,3],[95,0,95,3],[96,0,96,3],[97,0,97,3],[90,4,90,8],[91,4,91,8],[92,4,92,8],[93,4,93,8],[94,4,94,8],[95,4,95,8],[96,4,97,8],[9,4,9,8],[10,4,10,8],[11,4,11,8],[12,4,12,8],[13,4,14,4],[13,5,14,5],[13,6,14,6],[13,7,14,7],[13,8,14,8],[15,4,15,8],[16,4,16,8],[17,4,17,8],[18,4,18,8],[19,4,19,8],[20,4,21,8],[22,4,22,8],[23,4,23,8],[24,4,24,8],[135,0,135,8],[136,0,136,3],[137,2,137,3],[138,2,139,3],[139,0,139,1],[140,0,140,3],[98,4,98,8],[99,4,100,8],[102,4,103,8],[105,4,106,8],[108,4,109,8],[111,4,112,8],[114,4,115,8],[117,4,118,8],[120,4,120,8],[98,0,98,3],[106,0,106,3],[108,0,108,3],[109,0,109,3],[111,0,111,3],[112,0,112,3],[114,0,114,3],[115,0,115,3],[117,0,117,3]]}
["ПРАЙС-ЛИСТ НА РАЗМЕЩЕНИЕ РЕКЛАМЫ В 2ГИС "]
[null,null,null,null,"Рязань"]
["В стоимость включены 4 ежемесячных выпуска."]
[{"$f":"[1]Абакан!A4","v":"Цены действуют c 01.03.2015 года (начало размещения - с 01.04.2015). Цены указаны в рублях с НДС"}]
["Пакетные позиции",null,null,null,"ценовая группа 1*","ценовая группа 2*","ценовая группа 3*","ценовая группа 4*","ценовая группа 5*"]
[]
["ПАКЕТ «ВСЁ ВКЛЮЧЕНО»",null,null,null,{"$f":"G7*1.2","v":21240},{"$f":"G7*1.1","v":19470},{"$f":"E10+E11+E12","v":17700},{"$f":"G7*0.9","v":15930},{"$f":"G7*0.5","v":8850}]
["Пакет состоит из баннера и комментария, а также позиции «Реклама в партнерской сети». Баннер останавливает на себе внимание потенциальных клиентов и заметно выделяет вас на фоне списка всех фирм рубрики. Комментарий позволяет объяснить клиенту, чем вы отличаетесь от всех конкурентов. Позиция «Реклама в партнерской сети» позволяет усилить размещение рекламы в ПК-версии 2ГИС и включает в себя размещение в мобильной версии 2ГИС и онлайн-версии 2ГИС, а также в справочниках популярных площадок города, работающих на базе 2ГИС. \nПлощадки-партнеры 2ГИС используют справочники 2ГИС на своих сайтах."]
[]
["Баннер в рубрике (пакет \"Всё включено\")",null,null,null,8850]
["Комментарий к фирме (пакет \"Всё включено\")",null,null,null,3894]
["Реклама в партнерской сети",null,null,null,4956]
[]
["ПАКЕТ «ВСЁ ВКЛЮЧЕНО+»",null,null,null,{"$f":"G14*1.2","v":25912.799999999999},{"$f":"G14*1.1","v":23753.4},{"$f":"E17+E18+E19","v":21594},{"$f":"G14*0.9","v":19434.600000000002},{"$f":"G14*0.5","v":10797}]
["Пакет состоит из двойного баннера и комментария, а также позиции «Реклама в партнерской сети». Больший по размеру баннер привлекает больше внимания и гарантирует повышенный интерес потенциального клиента к вашему комментарию. Комментарий позволяет объяснить клиенту, чем вы отличаетесь от всех конкурентов. Позиция «Реклама в партнерской сети» позволяет усилить размещение рекламы в ПК-версии 2ГИС и включает в себя размещение в мобильной версии 2ГИС и онлайн-версии 2ГИС, а также в справочниках популярных площадок города, работающих на базе 2ГИС. \nПлощадки-партнеры 2ГИС используют справочники 2ГИС на своих сайтах."]
[]
["Двойной баннер в рубрике (пакет \"Всё включено\")",null,null,null,12744]
["Комментарий к фирме (пакет \"Всё включено\")",null,null,null,{"$f":"E11","v":3894}]
["Реклама в партнерской сети",null,null,null,{"$f":"E12","v":4956}]
[]
["ПАКЕТ «ДОПОЛНИТЕЛЬНЫЙ»",null,null,null,6490]
["Набор позиций, который приобретается в дополнение к пакету «ВСЁ ВКЛЮЧЕНО» или «ВСЁ ВКЛЮЧЕНО+», и позволяет усилить ваше присутствие в 2ГИС. Возможно использование не более 7  позиций или материалов из списка:  Подключение одинарного баннера к рубрике; Подключение двойного баннера к рубрике;  Дополнительный макет для одинарного баннера; Дополнительный макет для двойного баннера; Выгодные покупки с 2ГИС к фирме; Логотип на карте во всех масштабах в одной рубрике; Рекламная статья (до 120 Кб)."]
[]
["Приоритет в рубрике",null,null,null,{"$f":"\"цена от \"&MIN(E25:E51)&\" до \"&MAX(E25:E51)","v":"цена от 5428 до 108560"}]
["  приоритет в рубрике 1-го порядка для одинарного баннера в рубрике",null,null,null,5428]
["  приоритет в рубрике 2-го порядка для одинарного баннера в рубрике",null,null,null,10856]
["  приоритет в рубрике 3-го порядка для одинарного баннера в рубрике",null,null,null,16284]
["  приоритет в рубрике 4-го порядка для одинарного баннера в рубрике",null,null,null,21712]
["  приоритет в рубрике 5-го порядка для одинарного баннера в рубрике",null,null,null,27140]
["  приоритет в рубрике 6-го порядка для одинарного баннера в рубрике",null,null,null,32568]
["  приоритет в рубрике 7-го порядка для одинарного баннера в рубрике",null,null,null,37996]
["  приоритет в рубрике 8-го порядка для одинарного баннера в рубрике",null,null,null,43424]
["  приоритет в рубрике 9-го порядка для одинарного баннера в рубрике",null,null,null,48852]
["  приоритет в рубрике 10-го порядка для одинарного баннера в рубрике",null,null,null,54280]
["  приоритет в рубрике 11-го порядка для одинарного баннера в рубрике",null,null,null,59708]
["  приоритет в рубрике 12-го порядка для одинарного баннера в рубрике",null,null,null,65136]
["  приоритет в рубрике 13-го порядка для одинарного баннера в рубрике",null,null,null,70564]
["  приоритет в рубрике 14-го порядка для одинарного баннера в рубрике",null,null,null,75992]
["  приоритет в рубрике 15-го порядка для одинарного баннера в рубрике",null,null,null,81420]
["  приоритет в рубрике 16-го порядка для одинарного баннера в рубрике",null,null,null,86848]
["  приоритет в рубрике 17-го порядка для одинарного баннера в рубрике",null,null,null,92276]
["  приоритет в рубрике 18-го порядка для одинарного баннера в рубрике",null,null,null,97704]
["  приоритет в рубрике 19-го порядка для одинарного баннера в рубрике",null,null,null,103132]
["  приоритет в рубрике 20-го порядка для одинарного баннера в рубрике",null,null,null,108560]
["  приоритет в рубрике 1-го порядка для двойного баннера в рубрике",null,null,null,10856]
["  приоритет в рубрике 2-го порядка для двойного баннера в рубрике",null,null,null,21712]
["  приоритет в рубрике 3-го порядка для двойного баннера в рубрике",null,null,null,32568]
["  приоритет в рубрике 4-го порядка для двойного баннера в рубрике",null,null,null,43424]
["  приоритет в рубрике 5-го порядка для двойного баннера в рубрике",null,null,null,54280]
["  приоритет в рубрике 6-го порядка для двойного баннера в рубрике",null,null,null,65136]
["  приоритет в рубрике 7-го порядка для двойного баннера в рубрике",null,null,null,75992]
["приоритет в рубрике 8-го порядка для двойного баннера в рубрике",null,null,null,86848]
["приоритет в рубрике 9-го порядка для двойного баннера в рубрике",null,null,null,97704]
["приоритет в рубрике 10-го порядка для двойного баннера в рубрике",null,null,null,108560]
["приоритет в рубрике 11-го порядка для двойного баннера в рубрике",null,null,null,119416]
["приоритет в рубрике 12-го порядка для двойного баннера в рубрике",null,null,null,130272]
["приоритет в рубрике 13-го порядка для двойного баннера в рубрике",null,null,null,141128]
["приоритет в рубрике 14-го порядка для двойного баннера в рубрике",null,null,null,151984]
["приоритет в рубрике 15-го порядка для двойного баннера в рубрике",null,null,null,162840]
["приоритет в рубрике 16-го порядка для двойного баннера в рубрике",null,null,null,173696]
["приоритет в рубрике 17-го порядка для двойного баннера в рубрике",null,null,null,184552]
["приоритет в рубрике 18-го порядка для двойного баннера в рубрике",null,null,null,195408]
["приоритет в рубрике 19-го порядка для двойного баннера в рубрике",null,null,null,206264]
["приоритет в рубрике 20-го порядка для двойного баннера в рубрике",null,null,null,217120]
["Объявление в рубрике",null,null,null,{"$f":"\"цена от \"&MIN(E66:E79)&\" до \"&MAX(E66:E79)","v":"цена от 6254 до 73278"}]
["Объявление в рубрике (рубрика без рекламодателей)",null,null,null,6254]
["Объявление в рубрике (рубрика с рекламодателями)",null,null,null,9440]
["Объявление 1-го порядка в рубрике",null,null,null,13570]
["Объявление 2-го порядка в рубрике",null,null,null,18998]
["Объявление 3-го порядка в рубрике",null,null,null,24426]
["Объявление 4-го порядка в рубрике",null,null,null,29854]
["Объявление 5-го порядка в рубрике",null,null,null,35282]
["Объявление 6-го порядка в рубрике",null,null,null,40710]
["Объявление 7-го порядка в рубрике",null,null,null,46138]
["Объявление 8-го порядка в рубрике",null,null,null,51566]
["Объявление 9-го порядка в рубрике",null,null,null,56994]
["Объявление 10-го порядка в рубрике",null,null,null,62422]
["Объявление 11-го порядка в рубрике",null,null,null,67850]
["Объявление 12-го порядка в рубрике",null,null,null,73278]
["Объявление 13-го порядка в рубрике",null,null,null,78706]
["Объявление 14-го порядка в рубрике",null,null,null,84134]
["Объявление 15-го порядка в рубрике",null,null,null,89562]
["Объявление 16-го порядка в рубрике",null,null,null,94990]
["Объявление 17-го порядка в рубрике",null,null,null,100418]
["Объявление 18-го порядка в рубрике",null,null,null,105846]
["Объявление 19-го порядка в рубрике",null,null,null,111274]
["Объявление 20-го порядка в рубрике",null,null,null,116702]
["Эксклюзивные позиции",null,null,null,{"$f":"\"цена от \"&MIN(E89:E94)&\" до \"&MAX(E89:E94)","v":"цена от 14160 до 26550"}]
["Логотип на карте во всех масштабах в рубрике 1-го уровня",null,null,null,15930]
["Логотип на карте в детальных масштабах во всех рубриках",null,null,null,26550]
["Тематическая подборка",null,null,null,15104]
["Контекстный модуль под окном справочника",null,null,null,14160]
["Рекламный модуль в окне карты",null,null,null,15340]
["Рекламный модуль под окном справочника",null,null,null,23600]
["Медийные позиции",null,null,null,{"$f":"\"цена от \"&MIN(E97:E120)&\" до \"&MAX(E97:E120)","v":"цена от 11210 до 42480"}]
[]
["РЕКЛАМНЫЙ МОДУЛЬ НА СТАРТОВОЙ ЗАСТАВКЕ",null,null,null,35400]
["Виден  всем пользователям в момент запуска программы. Самая большая рекламная площадь в 2ГИС. В стоимость входит рекламная статья."]
[]
["РЕКЛАМНЫЙ МОДУЛЬ НА ФИНАЛЬНОЙ ЗАСТАВКЕ",null,null,null,23600]
["Виден  всем пользователям в момент закрытия программы."]
[]
["БАННЕР-НЕБОСКРЕБ",null,null,null,42480]
["Появляется после загрузки программы и остается на мониторе компьютера до момента поиска в справочнике. Его видят все пользователи 2ГИС вне зависимости от того, что они собрались искать в справочнике."]
[]
["РЕКЛАМА В ПЕЧАТИ",null,null,null,15340]
["Видна  всем пользователям в момент предварительного просмотра или печати фрагмента карты."]
[]
["СТАРТ В ОНЛАЙН-ВЕРСИИ",null,null,null,22420]
["Виден  всем пользователям при заходе на 2gis.ru"]
[]
["СТАРТ В ОНЛАЙН-ВЕРСИИ (С ВИДЕО)",null,null,null,26904]
["Виден  всем пользователям при заходе на 2gis.ru"]
[]
["МЕДИЙНО-КОНТЕКСТНЫЙ БАННЕР",null,null,null,12980]
["Расположен в специальной выделенной области в левом нижнем углу экрана при выборе рубрики на 2gis.ru"]
[]
["SMART-БАННЕР",null,null,null,11210]
["Баннер появляется на свободных местах страницы результатов поиска на 2gis.ru"]
[]
["Усиливающие позиции",null,null,null,{"$f":"\"цена от \"&MIN(E122:E133)&\" до \"&MAX(E122:E133)","v":"цена от 472 до 18526"}]
["Рекламная ссылка",null,null,null,1180]
["Рекламная ссылка к фирме",null,null,null,1180]
["Двойная рекламная ссылка к фирме",null,null,null,2360]
["Тройная рекламная ссылка к фирме",null,null,null,3540]
["Подключение одинарного баннера к рубрике",null,null,null,472]
["Подключение двойного баннера к рубрике",null,null,null,944]
["Дополнительная рубрика свыше 5 бесплатных",null,null,null,1770]
["Дополнительный макет для одинарного баннера",null,null,null,2832]
["Дополнительный макет для двойного баннера",null,null,null,5664]
["Выгодные покупки с 2ГИС к фирме",null,null,null,4720]
["Логотип на карте во всех масштабах в одной рубрике",null,null,null,5310]
["Рекламная статья (до 120 Кб)",null,null,null,18526]
[]
[]
["Стоимость, условия оказания Услуг/Дополнительных услуг, не перечисленных в настоящем прайс-листе, в т.ч. в рамках проведения спецпроектов, определяются Исполнителем в индивидуальном порядке и согласуются Сторонами."]
["НА ОКАЗАНИЕ ДОПОЛНИТЕЛЬНЫХ УСЛУГ (ИНФОРМАЦИОННЫХ) С ИСПОЛЬЗОВАНИЕМ СЕРВИСОВ 2ГИС"]
["Наименование Дополнительных услуг",null,"Стоимость оказания Дополнительных услуг в месяц"]
["Возможность управления (добавления, удаления, изменения порядка отображения) Фотографиями, относящимися к деятельности Заказчика",null,"стоимость Дополнительных услуг включена в стоимость размещения рекламных материалов"]
["Предоставление Заказчику доступа к дополнительным функциональным возможностям Платформы, связанным с созданием Заказчиками Буклетов*"]
["* Предоставление Заказчику доступа к дополнительным функциональным возможностям Платформы, связанным с созданием Заказчиками Буклетов применимо в отношений Заказчиков, информация о которых размечена в Справочнике организаций в рубрике \"Новостройки, Бани/сауны, Интернет-провайдеры\" и включает в себя следующие функциональные возможности Платформы: возможность задать адрес страницы Буклета, возможность добавления в Буклет функции отправки заявки с использованием Буклета Заказчика пользователями сети Интернет; возможность изменять стандартную иконку в Буклете Заказчика; возможность изменять фоновое изображение Буклета Заказчика; возможность изменять иконки на карте в Буклете Заказчика; возможность добавлять в Буклет десять и более планировок объектов недвижимости."]